bitfinex/quotes_ETHUSD_20250328
["timestamp","ask_amount","ask_price","bid_price","bid_amount"]
[1743133069587,0.14319946,2000.2,2000.1,0.05]
[1743133071659,0.91079946,2000.2,2000.1,0.05]
[1743133079837,3.91079946,2000.2,2000.1,0.05]
[1743133080133,8.66059946,2000.2,2000.1,0.05]
[1743133080703,9.02950794,2000.2,2000.1,0.05]
[1743133082231,8.66059946,2000.2,2000.1,0.05]
[1743133089249,14.67059946,2000.2,2000.1,0.05]
[1743133097128,18.12319535,2000.2,2000.1,0.05]
[1743133097329,13.86619946,2000.2,2000.1,0.05]
[1743133097560,17.31879535,2000.2,2000.1,0.05]
[1743133097735,6.15319946,2000.2,2000.1,0.05]
[1743133097928,6.15319946,2000.2,2000.1,0.8264]
[1743133098459,9.15319946,2000.2,2000.1,0.8264]
[1743133098971,6.15319946,2000.2,2000.1,0.8264]
[1743133100943,0.14319946,2000.2,2000.1,0.05]
[1743133101141,3.14319946,2000.2,2000.1,0.05]
[1743133101555,3.93299946,2000.2,2000.1,0.05]
[1743133102345,3.35434354,2000.2,2000.1,0.05]
[1743133102556,3.48216948,2000.2,2000.1,0.05]
[1743133107068,9.49216948,2000.2,2000.1,0.05]
[1743133108067,3.45259589,1999.4,1999.3,0.8076]
[1743133108457,3.57939411,1999.4,1999.3,0.8076]
[1743133108837,3.57939411,1999.4,1999.3,0.60788168]
[1743133110479,3.45259589,1999.4,1999.3,0.60788168]
[1743133110841,0.12617247,1999.4,1999.3,0.60788168]
[1743133111275,3.45259589,1999.6,1999.3,0.60788168]
[1743133111445,0.12617247,1999.4,1999.3,0.60788168]
[1743133111646,3.45259589,1999.6,1999.3,0.60788168]
[1743133111846,0.12617247,1999.4,1999.3,0.60788168]
[1743133112378,3.45259589,1999.6,1999.3,0.60788168]
[1743133112579,0.12496571,1999.5,1999.3,0.60788168]
[1743133117187,0.12496571,1999.5,1999.1,0.7757]
[1743133117482,3.45259589,1999.6,1999.1,2.30327]
[1743133118006,3.45259589,1999.4,1999.1,0.7757]
[1743133118152,3.45259589,1999.2,1998.7,0.7789]
[1743133118357,0.12496571,1999.1,1998.7,0.7789]
[1743133118959,3.45259589,1999.0,1998.7,0.7789]
[1743133119161,0.12501041,1998.9,1998.7,0.7789]
[1743133119370,3.45259589,1998.8,1998.5,0.4913]
[1743133119582,0.12349033,1998.7,1998.5,1.2553]
[1743133120903,3.45259589,1998.6,1998.5,1.2553]
[1743133121298,0.12268538,1998.6,1998.5,1.2553]
[1743133121797,0.11790033,1998.6,1998.5,0.4913]
[1743133121970,3.45259589,1998.8,1998.5,0.4913]
[1743133122369,0.11790033,1998.7,1998.5,0.4913]
[1743133122602,3.45259589,1998.6,1998.5,0.4913]
[1743133122969,3.57049622,1998.6,1998.5,0.4913]
[1743133126611,0.11790033,1998.6,1998.5,1.2927]
[1743133126813,3.45259589,1998.8,1998.5,1.2927]
[1743133126971,0.11763191,1998.7,1998.5,1.2927]
[1743133127905,0.11763191,1998.7,1998.5,0.4913]
[1743133130981,0.11763191,1998.7,1998.6,0.7818]
[1743133131195,3.45259589,1999.0,1998.6,1.409479]
[1743133131391,0.11772138,1998.9,1998.6,1.409479]
[1743133131990,0.11772138,1998.9,1998.6,6.412939]
[1743133132202,3.45259589,1999.0,1998.6,1.409479]
[1743133132801,0.11772138,1998.9,1998.6,1.409479]
[1743133133694,0.11772138,1998.9,1998.6,6.412859]
[1743133133891,0.11772138,1998.9,1998.7,0.6412859]
[1743133134101,3.45259589,1998.9,1998.6,1.409479]
[1743133134291,0.11772138,1998.8,1998.6,0.7818]
[1743133134677,3.45259589,1998.9,1998.6,0.7818]
[1743133134882,0.11951066,1998.7,1998.6,0.7818]
[1743133135081,3.45259589,1998.9,1998.6,0.7818]
[1743133135303,0.11937647,1998.7,1998.6,0.7818]
[1743133135814,3.45259589,1998.9,1998.6,0.7818]
[1743133135984,0.11937647,1998.8,1998.6,0.7818]
[1743133136311,3.45259589,1998.9,1998.6,0.7818]
[1743133136510,0.11937647,1998.7,1998.6,0.7818]
[1743133136707,3.45259589,1998.9,1998.6,0.7818]
[1743133136900,0.11937647,1998.7,1998.6,0.7818]
[1743133137100,3.45259589,1998.9,1998.6,0.7818]
[1743133137301,0.11937647,1998.7,1998.6,0.7818]
[1743133137502,3.45259589,1998.9,1998.6,0.7818]
[1743133137879,0.11924229,1998.8,1998.6,0.7818]
[1743133138280,3.45259589,1998.9,1998.6,0.7818]
[1743133138483,3.57179345,1998.7,1998.5,0.4913]
[1743133138683,3.45259589,1998.7,1998.5,0.4913]
[1743133138888,0.11919756,1998.6,1998.5,0.4913]
[1743133147811,0.11919756,1998.6,1998.5,1.2906]
[1743133148001,3.45259589,1998.9,1998.5,1.2906]
[1743133148190,0.11794506,1998.8,1998.5,1.2906]
[1743133148387,3.45259589,1998.9,1998.5,1.920059]
[1743133148591,0.11794506,1998.8,1998.5,1.920059]
[1743133148823,3.45259589,1998.9,1998.5,1.920059]
[1743133149012,0.11794506,1998.8,1998.5,1.920059]
[1743133149201,3.45259589,1998.9,1998.5,1.920059]
[1743133149404,0.11794506,1998.8,1998.5,1.920059]
[1743133149587,3.45259589,1998.9,1998.5,1.920059]
[1743133149790,0.11794506,1998.8,1998.6,0.7872]
[1743133150040,9.46259589,1999.2,1998.6,5.79058]
[1743133150250,0.11749773,1999.1,1998.9,0.7972]
[1743133150921,3.45259589,1999.4,1999.0,5.0025]
[1743133151290,3.45259589,1999.4,1998.9,5.79973]
[1743133152421,3.45259589,1999.4,1998.9,10.85233238]
[1743133152623,0.7775,1999.9,1999.2,0.8213]
[1743133152831,3.45259589,1999.9,1999.4,0.8213]
[1743133153144,3.45259589,1999.7,1999.4,0.8213]
[1743133153822,3.45259589,1999.9,1999.4,5.82275]
[1743133154046,3.45259589,1999.9,1999.4,10.82411]
[1743133154319,3.0,1999.8,1999.4,5.82266]
[1743133155025,3.0,1999.8,1999.4,10.82403]
[1743133155219,3.0,1999.8,1999.4,6.960063]
[1743133155725,3.45259589,1999.9,1999.4,6.960063]
[1743133155914,3.45259589,1999.7,1999.4,1.958703]
[1743133156827,3.45259589,1999.7,1999.4,6.960173]
[1743133157230,3.45259589,1999.7,1999.4,1.958703]
[1743133158632,0.11309629,1999.6,1999.4,1.958703]
[1743133158928,3.45259589,1999.9,1999.4,7.01019285]
[1743133159107,3.45259589,1999.9,1999.5,0.70101929]
[1743133159943,3.45259589,1999.7,1999.4,0.8213]
[1743133161423,3.45259589,1999.5,1999.2,0.7688]
[1743133161599,3.45259589,1999.3,1998.8,10.49877]
[1743133161799,3.45259589,1999.3,1998.9,2.0532677]
[1743133162028,3.45259589,1999.3,1998.9,1.049877]
[1743133162231,3.45259589,1999.3,1998.8,5.78587]
[1743133162600,3.45259589,1999.3,1998.9,0.55]
[1743133165136,0.11278302,1999.2,1998.9,0.55]
[1743133165429,3.45259589,1999.3,1998.9,0.55]
[1743133165640,0.11278302,1999.2,1998.9,0.55]
[1743133165929,3.45259589,1999.3,1998.9,0.55]
[1743133166333,0.11278302,1999.2,1998.9,0.55]
[1743133166633,0.11278302,1999.2,1998.9,2.73323494]
[1743133166834,3.45259589,1999.3,1998.9,2.73323494]
[1743133167032,0.11278302,1999.2,1999.1,1.3435]
[1743133167231,3.45259589,1999.7,1999.2,5.0018]
[1743133167430,0.1121564,1999.6,1999.4,0.8207]
[1743133167607,3.45259589,1999.7,1999.4,0.8207]
[1743133167806,0.1121564,1999.6,1999.4,0.8207]
[1743133168207,6.45259589,1999.7,1999.4,0.8207]
[1743133168401,0.1121564,1999.6,1999.4,0.8207]
[1743133168631,0.1121564,1999.6,1999.3,0.55]
[1743133168839,0.11278306,1999.5,1999.3,0.55]
[1743133169010,6.45259589,1999.7,1999.3,0.55]
[1743133169210,0.11278306,1999.6,1999.3,0.55]
[1743133169702,6.45259589,1999.7,1999.3,0.55]
[1743133169906,0.11278306,1999.5,1999.3,0.55]
[1743133170137,6.45259589,1999.7,1999.3,0.55]
[1743133170444,0.11278306,1999.6,1999.3,0.55]
[1743133170751,6.45259589,1999.7,1999.3,0.55]
[1743133171115,0.11278306,1999.6,1999.3,0.55]
[1743133171447,6.45259589,1999.7,1999.3,0.55]
[1743133171750,0.11278306,1999.6,1999.3,0.55]
[1743133172247,6.45259589,1999.7,1999.3,0.55]
[1743133172455,0.11278306,1999.6,1999.3,2.630223]
[1743133172661,6.45259589,1999.7,1999.3,2.630223]
[1743133172814,0.11336487,1999.6,1999.3,2.630223]
[1743133173152,6.45259589,1999.7,1999.3,2.630223]
[1743133173353,0.11354387,1999.5,1999.3,2.630223]
[1743133173657,6.45259589,1999.7,1999.3,2.630223]
[1743133173953,0.11354387,1999.6,1999.3,2.630223]
[1743133174454,3.0,1999.7,1999.5,0.55]
[1743133178313,3.0,1999.7,1999.6,0.769]
[1743133179518,3.0,1999.7,1999.5,0.55]
[1743133181643,3.45259589,1999.9,1999.5,0.55]
[1743133182052,3.0,1999.8,1999.5,0.55]
[1743133182256,3.0,1999.8,1999.5,1.20833923]
[1743133183360,1.00242416,2000.4,1999.5,1.20833923]
[1743133183361,4.22929589,2000.3,1999.8,0.8268]
[1743133183531,3.45259589,2000.3,1999.8,5.8271]
[1743133183726,33.569,2000.5,1999.9,5.55025]
[1743133183727,37.79829589,2000.5,1999.9,5.55025]
[1743133183927,33.08729589,2000.5,1999.9,0.55]
[1743133184166,3.0,2000.4,1999.9,6.95036]
[1743133185272,3.0,2000.4,1999.9,1.95011]
[1743133185643,3.0,2000.4,1999.9,6.95036]
[1743133185827,3.0,2000.4,1999.9,1.95011]
[1743133186662,0.7767,2000.5,1999.9,10.40295589]
[1743133186870,4.25539589,2000.7,1999.9,10.40295589]
[1743133187058,3.0,2000.6,1999.9,10.40295589]
[1743133187861,3.0,2000.6,1999.9,24.90295589]
[1743133188643,3.0,2000.6,1999.9,29.61395589]
[1743133190866,3.0,2000.6,1999.9,15.11395589]
[1743133194541,3.0,2000.6,1999.9,11.66136]
[1743133195370,3.0,2000.6,1999.9,6.95036]
[1743133195592,0.7843,2000.4,1999.9,11.66036]
[1743133197968,0.7843,2000.4,1999.9,26.16036]
[1743133198170,0.7843,2000.4,1999.9,21.45036]
[1743133198371,0.7843,2000.4,1999.9,6.95036]
[1743133198571,0.7843,2000.4,1999.9,7.00035661]
[1743133198866,0.7843,2000.4,1999.9,21.50035661]
[1743133199071,0.7843,2000.4,1999.9,21.45036]
[1743133200879,0.7843,2000.4,1999.9,1.18771]
[1743133201174,3.45259589,2000.3,1999.9,1.18771]
[1743133201882,0.7843,2000.1,1999.9,1.18771]
[1743133202078,0.47300371,2000.0,1999.7,0.55]
[1743133202382,0.8246,1999.9,1999.6,1.02096298]
[1743133202552,0.8246,1999.9,1999.6,6.02191298]
[1743133202883,0.12182028,1999.8,1999.6,6.02191298]
[1743133203069,0.8246,1999.9,1999.6,6.02191298]
[1743133203271,0.12182028,1999.8,1999.7,0.6021913]
[1743133203473,0.8246,1999.9,1999.7,0.6021913]
[1743133203778,0.12182028,1999.8,1999.7,0.6021913]
[1743133203980,0.12182028,1999.8,1999.7,0.59288352]
[1743133204183,0.8246,1999.9,1999.7,0.59288352]
[1743133204482,0.12182028,1999.8,1999.7,0.59288352]
[1743133204679,0.8246,1999.9,1999.7,0.59288352]
[1743133204863,0.12182028,1999.8,1999.6,6.02182298]
[1743133205065,0.8246,1999.9,1999.6,1.02096298]
[1743133205776,0.12182028,1999.8,1999.6,1.02096298]
[1743133206175,0.8246,1999.9,1999.6,1.02096298]
[1743133206484,0.12182028,1999.8,1999.6,1.02096298]
[1743133206780,0.8246,1999.9,1999.6,1.02096298]
[1743133206987,0.8246,1999.9,1999.6,6.02193298]
[1743133207296,0.8246,1999.9,1999.6,1.02096298]
[1743133207297,0.12182028,1999.8,1999.6,1.02096298]
[1743133207591,0.8246,1999.9,1999.5,15.05]
[1743133208101,0.12182028,1999.8,1999.5,15.05]
[1743133208287,0.8246,1999.9,1999.5,15.05]
[1743133208489,0.12182028,1999.8,1999.5,20.05124]
[1743133208665,0.8246,1999.9,1999.5,20.05124]
[1743133208866,0.12182028,1999.8,1999.5,20.05124]
[1743133209068,0.8246,1999.9,1999.5,20.05124]
[1743133209293,0.12182028,1999.8,1999.5,20.05124]
[1743133209586,0.8246,1999.9,1999.5,20.05124]
[1743133209800,0.12182028,1999.7,1999.5,20.05124]
[1743133209955,0.8246,1999.9,1999.5,20.05124]
[1743133210268,0.12182028,1999.8,1999.5,20.05124]
[1743133210452,0.8246,1999.9,1999.5,20.05124]
[1743133210655,0.12182028,1999.8,1999.5,20.05124]
[1743133210888,0.8246,1999.9,1999.5,20.05124]
[1743133211063,0.12182028,1999.8,1999.5,20.05124]
[1743133211266,0.8246,1999.9,1999.5,20.05124]
[1743133211481,0.12182028,1999.8,1999.5,20.05124]
[1743133211688,0.8246,1999.9,1999.5,20.05124]
[1743133211888,0.12182028,1999.8,1999.5,20.05124]
[1743133212183,0.8246,1999.9,1999.5,20.05124]
[1743133212383,0.12182028,1999.7,1999.5,20.05124]
[1743133212606,0.8246,1999.9,1999.5,15.05]
[1743133213113,0.12182028,1999.8,1999.5,15.05]
[1743133213282,0.8246,1999.9,1999.5,15.05]
[1743133213489,0.12182028,1999.8,1999.5,15.05]
[1743133213663,0.8246,1999.9,1999.5,15.05]
[1743133213864,0.12182028,1999.8,1999.5,15.05]
[1743133214076,0.8246,1999.9,1999.5,15.05]
[1743133214282,0.12182028,1999.8,1999.5,15.05]
[1743133214490,0.8246,1999.9,1999.5,15.05]
[1743133214787,0.12182028,1999.8,1999.5,15.05]
[1743133215120,0.8246,1999.9,1999.5,15.05]
[1743133215291,0.12182028,1999.8,1999.5,15.05]
[1743133215490,0.8246,1999.9,1999.5,20.05119]
[1743133215790,0.12182028,1999.8,1999.5,20.05119]
[1743133216117,0.8246,1999.9,1999.5,20.05119]
[1743133216303,0.12182028,1999.8,1999.5,20.05119]
[1743133216505,0.8246,1999.9,1999.5,20.05119]
[1743133216807,0.12182028,1999.8,1999.5,20.05119]
[1743133217107,0.8246,1999.9,1999.5,20.05119]
[1743133217275,0.12007603,1999.8,1999.5,20.05119]
[1743133217475,0.8246,1999.9,1999.5,20.05119]
[1743133217676,0.12007603,1999.8,1999.5,20.05119]
[1743133217877,0.8246,1999.9,1999.5,20.05119]
[1743133218077,0.12007603,1999.8,1999.5,20.05119]
[1743133218300,0.8246,1999.9,1999.5,20.05119]
[1743133218500,0.12007603,1999.8,1999.5,20.05119]
[1743133218778,0.8246,1999.9,1999.5,20.05119]
[1743133218978,0.12007603,1999.7,1999.5,20.05119]
[1743133219277,0.8246,1999.9,1999.5,20.05119]
[1743133219473,0.12007603,1999.8,1999.5,20.05119]
[1743133219677,0.8246,1999.9,1999.5,20.05119]
[1743133219973,0.12007603,1999.8,1999.5,20.05119]
[1743133220310,0.8246,1999.9,1999.5,20.05119]
[1743133220478,0.12007603,1999.8,1999.5,20.05119]
[1743133220680,0.8246,1999.9,1999.5,20.05119]
[1743133221010,0.12007603,1999.8,1999.5,20.05119]
[1743133221310,0.8246,1999.9,1999.5,20.05119]
[1743133221509,0.12007603,1999.8,1999.5,20.05119]
[1743133221710,0.8246,1999.9,1999.5,20.05119]
[1743133222012,0.12007603,1999.8,1999.5,20.05119]
[1743133222314,0.8246,1999.9,1999.5,20.05119]
[1743133222606,0.12007603,1999.8,1999.5,20.05119]
[1743133222909,0.8053,1999.5,1999.1,0.0183646]
[1743133223102,0.8053,1999.3,1999.1,0.0183646]
[1743133223279,0.1187343,1999.2,1999.1,0.0183646]
[1743133223715,3.57133019,1999.2,1999.1,0.0183646]
[1743133224008,7.37663019,1999.2,1999.1,0.0183646]
[1743133233913,13.38663019,1999.2,1999.1,0.0183646]
[1743133235583,14.37428821,1999.2,1999.1,0.0183646]
[1743133237307,19.08628821,1999.2,1999.1,0.0183646]
[1743133237510,18.09863019,1999.2,1999.1,0.0183646]
[1743133239439,10.38663019,1999.2,1999.1,0.0183646]
[1743133239645,14.29333019,1999.2,1999.1,0.0183646]
[1743133239813,17.29333019,1999.2,1999.1,0.0183646]
[1743133240237,14.29333019,1999.2,1999.1,0.0183646]
[1743133240436,12.58133019,1999.2,1999.1,0.0183646]
[1743133240639,9.58133019,1999.2,1999.1,0.0183646]
[1743133240854,31.28512119,1999.2,1999.1,0.0183646]
[1743133241026,30.71255219,1999.2,1999.1,0.0183646]
[1743133241219,19.36979219,1999.2,1999.1,0.0183646]
[1743133241423,13.41333019,1999.2,1999.1,0.0183646]
[1743133244738,7.40333019,1999.2,1999.1,0.0183646]
[1743133255139,25.31347819,1999.2,1999.1,0.0183646]
[1743133255367,7.40333019,1999.2,1999.1,0.0183646]
[1743133255568,9.86761119,1999.2,1999.1,0.0183646]
[1743133257171,9.03561119,1999.2,1999.1,0.0183646]
[1743133257377,11.28333019,1999.2,1999.1,0.0183646]
[1743133257741,6.57133019,1999.2,1999.1,0.0183646]
[1743133259376,7.37713019,1999.2,1999.1,0.0183646]
[1743133262440,13.38713019,1999.2,1999.1,0.0183646]
[1743133265074,14.39574827,1999.2,1999.1,0.0183646]
[1743133266071,6.1287343,1999.2,1999.1,0.0183646]
[1743133266547,6.1287343,1999.2,1999.1,0.8415646]
[1743133266969,0.1187343,1999.2,1999.1,6.3938146]
[1743133267144,0.1187343,1999.2,1999.1,7.03319606]
[1743133267348,4.712,1999.7,1999.2,5.00186]
[1743133267548,0.09968273,1999.6,1999.3,0.7983]
[1743133267743,9.46259589,1999.8,1999.3,5.00163]
[1743133267968,0.09968273,1999.7,1999.5,0.7983]
[1743133270382,0.09968273,1999.6,1999.5,0.7983]
[1743133270676,3.45259589,1999.7,1999.5,0.7983]
[1743133270884,0.09968273,1999.6,1999.5,0.7983]
[1743133271286,3.45259589,1999.7,1999.5,0.7983]
[1743133271587,0.09968273,1999.6,1999.5,0.7983]
[1743133272084,3.45259589,1999.7,1999.5,0.7983]
[1743133272294,0.09968273,1999.6,1999.5,0.7983]
[1743133272586,3.45259589,1999.7,1999.5,0.7983]
[1743133272786,0.09968273,1999.6,1999.5,0.7983]
[1743133273166,3.45259589,1999.7,1999.5,0.7983]
[1743133273489,0.09968273,1999.6,1999.5,0.7983]
[1743133274171,3.0,1999.8,1999.5,1.378276]
[1743133274370,0.09968273,1999.7,1999.5,1.378276]
[1743133275494,0.09968273,1999.7,1999.5,0.7983]
[1743133276065,3.55227862,1999.7,1999.5,0.7983]
[1743133276893,0.09968273,1999.7,1999.5,0.7983]
[1743133277267,6.45259589,1999.9,1999.5,0.7983]
[1743133277894,0.09968273,1999.8,1999.5,0.7983]
[1743133278402,0.09968273,1999.7,1999.6,0.8298]
[1743133278601,0.35091551,2000.0,1999.6,0.8298]
[1743133278769,0.09968273,1999.7,1999.6,0.8298]
[1743133278969,3.35091551,2000.0,1999.6,1.9709948]
[1743133279176,0.09968273,1999.9,1999.6,1.9709948]
[1743133280596,0.09968273,1999.9,1999.7,5.77324]
[1743133280769,0.09968273,1999.9,1999.7,0.7725]
[1743133282205,0.09968273,1999.9,1999.5,0.8185]
[1743133283273,0.09968273,1999.9,1999.5,6.401722]
[1743133283473,0.09968273,1999.9,1999.5,1.400492]
[1743133283701,0.09968273,1999.9,1999.5,0.8185]
[1743133285082,0.09968273,1999.9,1999.5,5.81974]
[1743133285271,0.09968273,1999.9,1999.7,0.7596]
[1743133285473,0.09968273,1999.9,1999.7,5.76034]
[1743133285666,0.09968273,1999.9,1999.7,0.7596]
[1743133287473,0.09968273,1999.9,1999.7,6.391247]
[1743133287678,0.09968273,1999.9,1999.8,5.0005]
[1743133288480,0.09968273,1999.9,1999.7,6.391247]
[1743133290508,0.09968273,1999.9,1999.8,6.3742]
[1743133291102,0.35091551,2000.0,1999.8,6.3742]
[1743133291276,0.10747917,1999.9,1999.8,6.3742]
[1743133291879,0.10747917,1999.9,1999.8,6.42419684]
[1743133292100,0.35091551,2000.0,1999.9,5.77635]
[1743133292685,0.35091551,2000.0,1999.9,9.22894589]
[1743133292884,0.35091551,2000.0,1999.9,23.72894589]
[1743133293208,0.35091551,2000.0,1999.9,26.65689048]
[1743133295388,0.35091551,2000.0,1999.9,8.70429459]
[1743133295597,0.35091551,2000.0,1999.9,5.77635]
[1743133295803,0.46009646,2000.0,1999.9,5.77635]
[1743133297011,0.35091551,2000.0,1999.9,6.79115909]
[1743133298003,0.35091551,2000.0,1999.9,7.34115909]
[1743133298203,0.35091551,2000.0,1999.9,7.39115613]
[1743133298511,0.35091551,2000.0,1999.9,2.01526561]
[1743133298686,0.35091551,2000.0,1999.8,0.55]
[1743133298883,1.21009646,2000.0,1999.7,0.631057]
[1743133299119,1.21009646,2000.0,1999.6,0.98727357]
[1743133299289,0.46009646,2000.0,1999.6,5.98825357]
[1743133299486,0.35091551,2000.0,1999.6,10.98906357]
[1743133299815,0.10918095,1999.9,1999.6,5.98808357]
[1743133299979,0.10918095,1999.9,1999.7,5.59948836]
[1743133300315,0.10918095,1999.9,1999.7,0.59880836]
[1743133300517,0.10918095,1999.9,1999.7,5.59935836]
[1743133300708,0.10918095,1999.9,1999.8,1.358]
[1743133301229,0.10918095,1999.9,1999.8,6.3585]
[1743133301405,0.10918095,1999.9,1999.8,7.55428584]
[1743133303340,0.35091551,2000.0,1999.9,5.00025]
[1743133303630,0.46193223,2000.0,1999.9,5.55025]
[1743133303831,0.35091551,2000.0,1999.9,5.55025]
[1743133307846,0.35091551,2000.0,1999.9,0.55]
[1743133308141,0.46193223,2000.0,1999.9,0.55]
[1743133308842,0.46193223,2000.0,1999.8,1.19578584]
[1743133309134,1.28693223,2000.0,1999.5,5.82331]
[1743133309338,1.28693223,2000.0,1999.5,20.32331]
[1743133309841,1.17591551,2000.0,1999.5,20.32331]
[1743133310143,1.17591551,2000.0,1999.5,27.411781]
[1743133310313,1.17591551,2000.0,1999.6,5.00098]
[1743133310517,0.35091551,2000.0,1999.7,5.0007]
[1743133310719,0.35091551,2000.0,1999.6,5.00098]
[1743133312950,0.35091551,2000.0,1999.6,15.05]
[1743133313153,0.35091551,2000.0,1999.6,17.3460761]
[1743133313369,1.14531551,2000.0,1999.6,2.8460761]
[1743133313574,1.14531551,2000.0,1999.6,0.55]
[1743133313875,0.11101672,1999.9,1999.6,0.55]
[1743133315380,0.8211,1999.8,1999.3,5.82902]
[1743133315587,0.8211,1999.8,1999.3,0.55]
[1743133315939,0.11101672,1999.7,1999.3,15.05]
[1743133316136,0.11101672,1999.7,1999.3,17.555378]
[1743133316436,0.11101672,1999.7,1999.3,22.557078]
[1743133316638,0.11101672,1999.7,1999.4,5.00144]
[1743133316853,0.8211,1999.8,1999.4,5.00144]
[1743133317668,0.10895701,1999.7,1999.3,22.557088]
[1743133317872,0.10895701,1999.7,1999.3,20.05171]
[1743133318034,0.8211,1999.8,1999.3,20.05171]
[1743133319266,3.45259589,1999.7,1999.3,0.55]
[1743133319471,4.26189589,1999.7,1999.2,0.55]
[1743133319651,0.10882266,1999.6,1999.2,0.55]
[1743133319848,0.8093,1999.5,1999.1,14.5183646]
[1743133320054,4.37071855,1999.5,1999.1,0.0183646]
[1743133320235,4.26189589,1999.5,1999.1,0.0183646]
[1743133320441,0.10783729,1999.4,1999.1,0.0183646]
[1743133320668,0.10783729,1999.4,1999.1,5.5706046]
[1743133321192,0.10783729,1999.4,1999.1,0.0183646]
[1743133321883,0.7524,1999.3,1999.1,0.0183646]
[1743133322042,3.86019249,1999.3,1999.1,0.0183646]
[1743133323658,7.20499589,1999.2,1999.1,0.0183646]
[1743133323960,7.31086178,1999.2,1999.1,0.0183646]
[1743133325081,3.85826589,1999.2,1999.1,0.0183646]
[1743133332461,7.31086178,1999.2,1999.1,0.0183646]
[1743133332762,12.01986178,1999.2,1999.1,0.0183646]
[1743133333097,12.03366178,1999.2,1999.1,0.0183646]
[1743133350038,18.04366178,1999.2,1999.1,0.0183646]
[1743133351348,22.11337648,1999.2,1999.1,0.0183646]
[1743133351528,18.66078059,1999.2,1999.1,0.0183646]
[1743133356042,18.04366178,1999.2,1999.1,0.0183646]
[1743133357526,18.04466178,1999.2,1999.1,0.0183646]
[1743133367881,68.54466178,1999.2,1999.1,0.0183646]
[1743133368786,61.75137178,1999.2,1999.1,0.0183646]
[1743133368993,9.56846178,1999.2,1999.1,0.0183646]
[1743133369146,8.26846178,1999.2,1999.1,0.0183646]
[1743133369778,11.26846178,1999.2,1999.1,0.0183646]
[1743133375264,12.06116178,1999.2,1999.1,0.0183646]
[1743133377825,11.26846178,1999.2,1999.1,0.0183646]
[1743133380295,12.05176178,1999.2,1999.1,0.0183646]
[1743133380496,18.06176178,1999.2,1999.1,0.0183646]
[1743133380739,19.06820549,1999.2,1999.1,0.0183646]
[1743133383116,57.33860449,1999.2,1999.1,0.0183646]
[1743133383310,19.06820549,1999.2,1999.1,0.0183646]
[1743133383727,57.33860449,1999.2,1999.1,0.0183646]
[1743133385259,19.06820549,1999.2,1999.1,0.0183646]
[1743133385617,62.01107349,1999.2,1999.1,0.0183646]
[1743133390368,61.22677349,1999.2,1999.1,0.0183646]
[1743133390735,9.56846178,1999.2,1999.1,0.0183646]
[1743133390935,14.27746178,1999.2,1999.1,0.8400646]
[1743133391173,17.27746178,1999.2,1999.1,0.8400646]
[1743133393329,13.82486589,1999.2,1999.1,0.8400646]
[1743133393530,17.27746178,1999.2,1999.1,0.8400646]
[1743133393730,8.26746178,1999.2,1999.1,0.8400646]
[1743133394135,11.26746178,1999.2,1999.1,0.8400646]
[1743133398059,6.55846178,1999.2,1999.1,0.8400646]
[1743133398252,3.10586589,1999.2,1999.1,0.8400646]
[1743133398452,0.10586589,1999.2,1999.1,0.8400646]
[1743133398637,0.10586589,1999.2,1999.1,6.43157143]
[1743133398843,6.01,1999.4,1999.2,0.7787]
[1743133399727,9.46259589,1999.4,1999.2,0.7787]
[1743133403165,3.45259589,1999.4,1999.2,0.7787]
[1743133411503,3.45259589,1999.8,1999.4,0.8243]
[1743133411704,4.707,1999.7,1999.5,5.82553]
[1743133411851,4.707,1999.7,1999.5,6.908208]
[1743133412046,5.05791551,2000.0,1999.7,0.8243]
[1743133412275,5.05791551,2000.0,1999.7,5.82504]
[1743133412475,5.05791551,2000.0,1999.8,0.8243]
[1743133412985,8.5105114,2000.0,1999.8,0.8243]
[1743133413888,0.09535228,1999.9,1999.8,0.8243]
[1743133435138,0.09535228,1999.9,1999.8,5.8248]
[1743133435346,0.09535228,1999.9,1999.8,6.36200359]
[1743133435499,0.09535228,1999.9,1999.8,7.49825895]
[1743133435901,0.35091551,2000.0,1999.9,6.31365]
[1743133436144,0.35091551,2000.0,1999.9,9.76624589]
[1743133437949,0.35091551,2000.0,1999.9,9.81623172]
[1743133438241,0.35091551,2000.0,1999.9,9.76624589]
[1743133438534,0.35091551,2000.0,1999.9,11.45668774]
[1743133438837,0.35091551,2000.0,1999.9,11.83169336]
[1743133439038,0.35091551,2000.0,1999.9,26.33169336]
[1743133444651,0.35091551,2000.0,1999.9,22.87909747]
[1743133444954,3.8315,2001.0,2000.6,4.99833]
[1743133445152,3.8315,2001.0,2000.7,4.99821]
[1743133445326,3.8315,2001.0,2000.7,0.55]
[1743133445723,0.8315,2001.0,2000.7,5.54823]
[1743133445927,0.8315,2001.0,2000.7,10.5463]
[1743133446152,0.8315,2001.0,2000.7,11.60592777]
[1743133446353,0.8315,2001.0,2000.7,6.60768777]
[1743133446559,3.0,2001.1,2000.8,4.99782]
[1743133446928,3.0,2001.1,2000.7,7.43260777]
[1743133447128,3.0,2001.1,2000.7,12.43075777]
[1743133448750,3.0,2001.1,2000.7,12.43071777]
[1743133449462,3.0,2001.1,2000.8,1.24307178]
[1743133450363,0.09715531,2001.0,2000.8,1.24307178]
[1743133450863,3.5497512,2001.0,2000.5,5.77133]
[1743133451138,3.5497512,2001.0,2000.6,0.55]
[1743133451139,0.7939,2000.9,2000.6,0.55]
[1743133451395,0.10231186,2000.8,2000.6,5.54849]
[1743133451597,0.10231186,2000.8,2000.7,0.04997725]
[1743133451887,0.10231186,2000.8,2000.7,5.59822725]
[1743133452051,0.10231186,2000.8,2000.7,10.18773387]
[1743133452394,3.0,2001.2,2000.9,4.99761]
[1743133453480,6.01,2001.6,2001.0,5.54738]
[1743133453648,0.758,2001.5,2001.2,4.99679]
[1743133457573,7.26999589,2001.7,2001.3,5.54664]
[1743133457773,7.26999589,2001.7,2001.3,6.68609937]
[1743133458674,0.10267035,2001.6,2001.3,6.68609937]
[1743133458873,7.26999589,2001.7,2001.3,6.68609937]
[1743133459072,0.10267035,2001.5,2001.3,6.68609937]
[1743133459257,7.26999589,2001.7,2001.3,6.68609937]
[1743133459463,0.10267035,2001.6,2001.4,1.16828894]
[1743133459664,7.26999589,2001.7,2001.4,1.16828894]